bitfinex/quotes_ETHUSD_20250413
["timestamp","ask_amount","ask_price","bid_price","bid_amount"]
[1744567909469,6.10426,1638.2,1637.8,7.40004]
[1744567909668,6.10426,1638.2,1637.9,0.16086805]
[1744567910176,6.713976,1638.4,1638.0,6.10486]
[1744567910512,12.817706,1638.4,1638.0,6.10486]
[1744567910909,12.817706,1638.4,1638.1,0.16305932]
[1744567911271,6.10388,1638.3,1638.0,6.10486]
[1744567911462,6.10388,1638.3,1638.1,0.16305932]
[1744567911667,0.610376,1638.4,1638.1,6.10445]
[1744567911895,9.10319,1638.5,1638.3,6.10386]
[1744567911896,3.0,1638.5,1638.3,6.10386]
[1744567912199,7.33028,1638.6,1638.2,6.26730932]
[1744567912384,7.33028,1638.6,1638.2,6.10425]
[1744567912570,7.33028,1638.6,1638.3,0.16305932]
[1744567912788,3.0,1638.6,1638.3,6.26692932]
[1744567912989,3.0,1638.6,1638.4,6.1034]
[1744567913211,8.492,1638.7,1638.4,6.10333]
[1744567913507,59.69635,1639.1,1638.6,1.2442]
[1744567913705,59.69635,1639.1,1638.5,0.15966308]
[1744567913706,6.10277,1638.6,1638.5,0.15966308]
[1744567913860,6.10277,1638.6,1638.3,7.34795]
[1744567914063,12.20541,1638.7,1638.3,7.34795]
[1744567914296,9.10296,1638.6,1638.2,9.630337]
[1744567914476,3.0,1638.6,1638.4,6.1035]
[1744567914676,3.0,1638.6,1638.3,6.10388]
[1744567914999,9.10277,1638.6,1638.2,15.734497]
[1744567915467,9.10277,1638.6,1638.2,9.630277]
[1744567915889,6.10317,1638.5,1638.2,9.630277]
[1744567916400,6.10358,1638.4,1638.1,6.10461]
[1744567916598,6.10413,1638.3,1638.0,3.526157]
[1744567916899,6.10437,1638.2,1637.9,7.34953]
[1744567917259,6.10437,1638.2,1637.9,6.10533]
[1744567917900,12.20884,1638.2,1637.8,12.21138]
[1744567918281,8.478,1638.3,1638.0,6.10479]
[1744567918480,8.478,1638.3,1637.8,1.345558]
[1744567918683,8.478,1638.3,1638.2,6.10426]
[1744567919381,3.270741,1638.7,1638.6,6.10277]
[1744567919382,8.478,1638.7,1638.6,6.10277]
[1744567919704,8.478,1638.7,1638.5,7.28704]
[1744567919919,14.5804,1638.7,1638.4,6.10344]
[1744567920080,14.5804,1638.7,1638.4,12.2068]
[1744567920280,6.10279,1638.6,1638.3,6.10384]
[1744567920481,3.270719,1638.6,1638.0,6.10485]
[1744567920696,6.10352,1638.4,1638.0,6.10496]
[1744567921003,1.2024,1638.6,1638.3,6.10374]
[1744567921004,10.30522,1638.6,1638.3,6.10374]
[1744567921212,16.40815,1638.6,1638.2,12.20832]
[1744567921388,10.30522,1638.6,1638.2,12.20832]
[1744567921821,4.2024,1638.6,1638.3,6.1037]
[1744567922026,3.0,1638.6,1638.4,6.10349]
[1744567922308,8.478,1638.7,1638.1,0.06103672]
[1744567922624,52.373,1639.1,1638.3,1.1839]
[1744567922625,21.88321,1639.0,1638.3,1.1839]
[1744567922782,6.10171,1638.9,1638.6,6.10275]
[1744567923475,12.20447,1638.8,1638.4,3.526157]
[1744567923681,6.10168,1638.9,1638.5,6.10298]
[1744567923908,12.20353,1638.9,1638.5,6.10298]
[1744567924114,6.10232,1638.8,1638.4,9.629547]
[1744567924381,6.10293,1638.6,1638.4,3.526157]
[1744567924605,6.10327,1638.5,1638.1,6.10456]
[1744567924791,12.938497,1638.5,1638.1,6.10445]
[1744567924993,21.416497,1638.5,1638.1,6.10445]
[1744567925194,21.416497,1638.5,1638.1,12.2089]
[1744567925913,21.416497,1638.5,1638.0,10.829917]
[1744567925914,6.10379,1638.4,1638.0,10.829917]
[1744567926082,6.1039,1638.3,1638.0,3.526157]
[1744567926283,6.71467,1638.2,1638.0,3.526157]
[1744567926515,6.71467,1638.2,1637.6,10.831407]
[1744567926516,6.10522,1638.0,1637.6,10.831407]
[1744567926692,6.10467,1638.1,1637.7,6.29671194]
[1744567926892,6.10467,1638.1,1637.8,6.10556]
[1744567927918,9.10389,1638.3,1637.8,0.06105823]
[1744567928223,1.2143,1638.4,1638.1,6.1045]
[1744567928380,24.416257,1638.5,1638.2,6.10402]
[1744567928381,12.209757,1638.5,1638.2,6.10402]
[1744567928584,11.478,1638.5,1638.1,6.10463]
[1744567928885,11.478,1638.5,1638.3,6.10365]
[1744567929087,8.478,1638.5,1638.3,6.10365]
[1744567930217,8.478,1638.5,1638.4,6.10351]
[1744567930419,8.478,1638.5,1638.4,7.29361]
[1744567930627,1.2942,1638.9,1638.6,6.10256]
[1744567930827,8.478,1638.9,1638.7,6.10226]
[1744567931034,8.478,1638.9,1638.6,6.10256]
[1744567931533,8.478,1638.9,1638.5,9.629237]
[1744567931534,3.0,1638.8,1638.5,3.526157]
[1744567931690,6.10277,1638.6,1638.5,3.526157]
[1744567931885,7.452723,1638.6,1638.5,3.526157]
[1744567932621,6.10325,1638.5,1638.2,6.10412]
[1744567932982,6.10412,1638.3,1638.0,3.526157]
[1744567933438,6.10412,1638.3,1637.9,12.21047]
[1744567933597,6.10388,1638.3,1637.9,12.2104]
[1744567933802,15.87477,1638.4,1638.0,6.10485]
[1744567934111,1.587477,1638.3,1638.0,6.10485]
[1744567934291,7.691417,1638.3,1638.0,6.10485]
[1744567934828,1.587477,1638.3,1638.0,12.20968]
[1744567934999,1.587477,1638.3,1638.0,6.10483]
[1744567935727,7.691357,1638.3,1638.0,6.10483]
[1744567936410,6.10426,1638.2,1637.9,6.10535]
[1744567937333,7.691357,1638.3,1637.9,6.10522]
[1744567937510,7.691357,1638.3,1638.0,6.10491]
[1744567937703,13.795517,1638.3,1637.9,6.10522]
[1744567938231,13.795457,1638.3,1637.9,12.21047]
[1744567938533,13.795457,1638.3,1637.9,6.10522]
[1744567938729,13.795457,1638.3,1637.6,9.632627]
[1744567938730,6.10515,1638.0,1637.7,6.10612]
[1744567939112,6.10469,1638.1,1637.7,6.106]
[1744567939313,13.5882357,1638.2,1637.8,6.10563]
[1744567939503,1.35882357,1638.1,1637.8,6.10563]
[1744567940429,4.587477,1638.3,1638.0,6.10488]
[1744567940633,4.587477,1638.3,1638.0,12.20976]
[1744567940929,4.587477,1638.3,1637.9,1.2797]
[1744567940930,10.691477,1638.3,1637.9,7.38499]
[1744567941137,16.795717,1638.3,1637.9,13.4902]
[1744567941345,16.795717,1638.3,1637.9,13.49013]
[1744567942548,10.691477,1638.3,1637.9,13.49013]
[1744567942750,20.68428,1638.4,1638.0,12.20985]
[1744567942962,20.68428,1638.4,1638.1,6.10461]
[1744567942963,8.477,1638.4,1638.1,6.10461]
[1744567943245,8.477,1638.4,1638.2,6.10417]
[1744567944233,8.477,1638.4,1638.1,12.20913]
[1744567944741,8.477,1638.4,1638.2,6.10422]
[1744567945260,14.56705,1638.8,1638.5,6.10293]
[1744567945736,8.465,1638.8,1638.5,6.10308]
[1744567945922,8.465,1638.8,1638.2,7.324814]
[1744567945923,1.2374,1638.7,1638.2,6.10412]
[1744567946122,6.10326,1638.5,1638.2,6.10412]
[1744567946518,6.10277,1638.6,1638.2,6.10409]
[1744567946723,7.33983,1638.7,1638.3,6.10368]
[1744567946925,6.836863,1638.6,1638.3,6.10368]
[1744567947121,6.10215,1638.8,1638.5,6.10312]
[1744567947445,14.56668,1638.9,1638.6,6.10275]
[1744567947745,14.56668,1638.9,1638.5,6.10299]
[1744567948421,20.66859,1638.9,1638.5,12.20596]
[1744567948619,14.56668,1638.9,1638.6,6.10265]
[1744567949031,8.465,1638.9,1638.7,6.10235]
[1744567949231,6.10267,1638.7,1638.4,1.2797]
[1744567949410,12.20526,1638.7,1638.3,12.20754]
[1744567950140,6.10281,1638.6,1638.3,6.10377]
[1744567950346,7.33631,1638.6,1638.2,6.10409]
[1744567950738,7.33638,1638.6,1638.1,3.526157]
[1744567951043,10.33566,1638.8,1638.4,6.10336]
[1744567951248,6.10255,1638.7,1638.4,6.10336]
[1744567951552,10.33566,1638.8,1638.4,12.2067]
[1744567951848,6.10245,1638.7,1638.4,6.10334]
[1744567953842,4.2335,1638.8,1638.5,6.10313]
[1744567954036,4.2335,1638.8,1638.5,12.20609]
[1744567954240,4.2335,1638.8,1638.5,6.10296]
[1744567954435,10.33555,1638.8,1638.4,13.42918]
[1744567954643,11.89042181,1638.8,1638.4,13.42918]
[1744567954939,17.99266181,1638.8,1638.4,7.32574]
[1744567955354,17.99266181,1638.8,1638.4,13.42909]
[1744567955818,11.89042181,1638.8,1638.4,13.42909]
[1744567956145,15.20427,1638.8,1638.4,7.32577]
[1744567956352,9.10205,1638.8,1638.4,7.32577]
[1744567956751,6.10251,1638.7,1638.4,7.32577]
[1744567957247,6.10251,1638.7,1638.4,6.10347]
[1744567958448,1.2865,1638.7,1638.2,1.2223]
[1744567958754,6.10426,1638.2,1638.1,3.526157]
[1744567958949,6.104,1638.3,1637.9,6.10521]
[1744567959125,14.9515,1638.3,1637.9,6.10521]
[1744567959330,6.10431,1638.2,1637.9,6.10521]
[1744567959542,6.10431,1638.2,1637.8,7.3585]
[1744567959920,6.10465,1638.1,1637.8,7.3585]
[1744567962251,6.10431,1638.2,1637.8,7.35843]
[1744567962455,6.10431,1638.2,1637.9,6.10536]
[1744567962654,6.10464,1638.1,1637.8,7.35843]
[1744567963021,6.10464,1638.1,1637.7,9.632107]
[1744567963227,6.10464,1638.1,1637.8,6.10565]
[1744567964059,7.599426,1638.2,1637.8,12.2113]
[1744567964261,13.703876,1638.2,1637.8,12.2113]
[1744567964426,7.599426,1638.2,1637.9,6.10531]
[1744567964754,13.703866,1638.2,1637.9,6.10531]
[1744567965053,7.599426,1638.2,1637.9,6.10531]
[1744567965755,7.599426,1638.2,1637.7,15.738217]
[1744567965756,6.10489,1638.1,1637.7,15.738217]
[1744567966155,6.10489,1638.1,1637.6,1.2528]
[1744567966156,6.10553,1637.9,1637.6,6.10641]
[1744567966657,8.465,1637.9,1637.8,6.10575]
[1744567966838,8.465,1637.9,1637.7,6.10577]
[1744567967160,1.4568,1638.3,1637.5,0.06106002]
[1744567967360,3.0,1638.4,1637.6,1.45594796]
[1744567967532,6.10519,1638.0,1637.6,7.56227796]
[1744567967730,6.10519,1638.0,1637.7,6.10605]
[1744567967922,14.57119,1638.0,1637.7,6.10605]
[1744567968122,14.57119,1638.0,1637.6,7.37153]
[1744567968123,1.457119,1637.9,1637.6,7.37153]
[1744567968530,7.562669,1637.9,1637.5,12.21358]
[1744567968736,7.562669,1637.9,1637.5,6.10679]
[1744567968948,6.10642,1637.7,1637.3,6.10747]
[1744567969232,12.21289,1637.7,1637.3,6.10747]
[1744567969450,1.221289,1637.7,1637.5,6.10673]
[1744567969663,1.457119,1637.9,1637.6,6.10626]
[1744567970235,1.457119,1637.9,1637.5,7.32606]
[1744567970434,7.562709,1637.9,1637.5,7.32606]
[1744567970633,13.668359,1637.9,1637.6,0.11839782]
[1744567971179,7.562709,1637.9,1637.6,0.11839782]
[1744567971386,15.79798,1638.0,1637.6,6.22475782]
[1744567971684,21.90317,1638.0,1637.6,12.33111782]
[1744567971859,21.90317,1638.0,1637.6,6.22475782]
[1744567972380,6.10577,1637.8,1637.6,0.11839782]
[1744567972677,6.10577,1637.8,1637.4,12.21422]
[1744567972981,6.10545,1637.9,1637.5,12.21329]
[1744567973185,8.295789,1637.9,1637.5,12.33140751]
[1744567973551,14.401379,1637.9,1637.5,6.22467751]
[1744567975384,2.190339,1637.9,1637.5,6.22493751]
[1744567975557,2.190339,1637.9,1637.6,6.10637]
[1744567975957,2.190339,1637.9,1637.7,0.11811751]
[1744567976170,2.190339,1637.9,1637.6,6.10637]
[1744567976368,2.190339,1637.9,1637.6,12.2127]
[1744567976568,9.6929,1638.0,1637.7,6.22400751]
[1744567976754,8.466,1638.0,1637.7,0.11811751]
[1744567976955,8.466,1638.0,1637.9,6.10537]
[1744567977669,8.466,1638.0,1637.9,6.22348751]
[1744567977871,15.77946,1638.4,1638.1,6.10457]
[1744567978057,11.253846,1638.4,1638.1,12.20902]
[1744567978381,11.253846,1638.4,1638.2,0.11811751]
[1744567978558,8.449,1638.4,1638.3,6.10388]
[1744567979081,8.449,1638.4,1638.3,6.22199751]
[1744567979285,8.449,1638.4,1638.3,7.44119751]
[1744567979684,52.356,1638.6,1638.5,6.10314]
[1744567979855,8.449,1638.8,1638.5,12.20628]
[1744567980049,8.449,1638.8,1638.6,6.10267]
[1744567980288,8.449,1638.8,1638.7,6.10239]
[1744567980498,8.449,1638.8,1638.6,0.11811751]
[1744567980710,6.10239,1638.7,1638.4,6.10347]
[1744567981005,6.10329,1638.5,1638.1,13.42834]
[1744567981155,6.10329,1638.5,1638.1,6.10457]
[1744567981354,6.10329,1638.5,1638.1,6.10445]
[1744567981578,6.10329,1638.5,1638.1,6.10443]
[1744567981856,6.10329,1638.5,1638.3,6.10388]
[1744567981857,1.220611,1638.5,1638.3,6.10388]
[1744567982057,6.10282,1638.6,1638.3,6.10388]
[1744567982791,12.20504,1638.7,1638.3,6.10372]
[1744567982983,6.10243,1638.7,1638.3,12.20743]
[1744567983694,3.0,1638.7,1638.4,6.10331]
[1744567983899,4.962283,1638.7,1638.4,6.10331]
[1744567984094,4.962283,1638.7,1638.3,7.37492]
[1744567984095,10.5208,1638.8,1638.5,6.10305]
[1744567984296,10.5208,1638.8,1638.6,6.10271]
[1744567984297,8.449,1638.8,1638.6,6.10271]
[1744567984498,8.449,1638.8,1638.7,6.10239]
[1744567987072,6.10243,1638.7,1638.4,6.10347]
[1744567987272,6.10243,1638.7,1638.3,10.901077]
[1744567987472,8.449,1638.8,1638.3,10.901077]
[1744567987473,6.10289,1638.6,1638.3,4.797257]
[1744567987706,13.401,1638.6,1638.3,3.526157]
[1744567987870,7.29789,1638.6,1638.3,3.526157]
[1744567988080,7.29789,1638.6,1638.3,6.10387]
[1744567988606,13.40087,1638.6,1638.2,12.20821]
[1744567988779,13.40087,1638.6,1638.3,6.10388]
[1744567988780,2.919577,1638.6,1638.3,6.10388]
[1744567989105,9.022347,1638.6,1638.3,6.10388]
[1744567989509,2.919577,1638.6,1638.3,6.10388]
[1744567989706,9.022387,1638.6,1638.2,6.10419]
[1744567989879,6.10364,1638.4,1638.1,3.526157]
[1744567990075,6.10402,1638.3,1637.9,13.51038]
[1744567990798,6.10402,1638.3,1637.9,7.40504]
[1744567991804,6.10438,1638.2,1637.9,1.2997]
[1744567992008,6.10521,1638.0,1637.6,10.836927]
[1744567992235,6.10521,1638.0,1637.6,16.943257]
[1744567992579,6.10521,1638.0,1637.4,7.31159]
[1744567992580,6.10587,1637.8,1637.4,7.31159]
[1744567992882,6.10724,1637.4,1637.1,4.89693582]
[1744567993110,6.10782,1637.3,1636.9,6.10891]
[1744567993277,6.10798,1637.2,1636.9,6.10891]
[1744567993812,12.21565,1637.3,1636.9,6.10891]
[1744567994016,6.10782,1637.3,1636.9,6.10891]
[1744567994216,6.1073,1637.4,1637.0,6.10846]
[1744567994517,6.10802,1637.2,1636.9,6.10904]
[1744567994718,7.34027,1637.1,1636.8,4.89693582]
[1744567995021,6.10885,1637.0,1636.8,4.89693582]
[1744567996620,6.10885,1637.0,1636.6,6.11003]
[1744567996807,6.10885,1637.0,1636.7,0.11561045]
[1744567997923,6.10911,1636.9,1636.7,0.11561045]
[1744567998288,6.10911,1636.9,1636.5,7.39028]
[1744567998500,6.10911,1636.9,1636.8,0.1310173]
[1744567998698,13.44037,1636.9,1636.5,7.39028]
[1744567998916,13.44037,1636.9,1636.8,0.1310173]
[1744567999114,13.44037,1636.9,1636.5,7.39028]
[1744567999506,7.33091,1636.9,1636.6,0.1310173]
[1744567999906,6.57739402,1637.0,1636.7,6.10954]
[1744567999907,3.0,1637.0,1636.7,6.10954]
[1744568000103,3.0,1637.0,1636.8,6.10933]
[1744568000316,14.55506,1637.2,1636.9,6.1091]
[1744568000498,14.55506,1637.2,1636.9,12.3490773]
[1744568000499,8.447,1637.2,1636.9,12.3490773]
[1744568000703,8.447,1637.2,1637.0,6.10868]
[1744568001143,8.447,1637.2,1636.9,6.10896]
[1744568001287,8.447,1637.2,1637.1,0.13112666]
[1744568001493,8.447,1637.2,1636.9,6.10896]
[1744568001717,8.447,1637.2,1637.1,0.13112666]
[1744568002188,1.2786,1637.6,1637.2,6.10798]
[1744568002388,8.43,1637.7,1637.3,6.10731]
[1744568002593,8.43,1637.7,1637.4,6.23741115]
[1744568002820,20.6428,1637.7,1637.4,0.13036115]
[1744568003127,8.43,1637.7,1637.4,6.10723]
[1744568003322,8.43,1637.7,1637.5,0.12883032]
[1744568003505,14.53618,1637.7,1637.5,0.12883032]
[1744568004226,8.43,1637.7,1637.6,6.10649]
[1744568004521,8.43,1637.7,1637.4,6.10718]
[1744568004722,14.53612,1637.7,1637.6,0.12686249]
[1744568004923,6.10649,1637.6,1637.5,0.12609734]
[1744568005122,9.7086,1637.7,1637.3,6.10756]
[1744568005314,15.81488,1637.7,1637.4,6.10711]
[1744568005492,18.006949,1637.7,1637.4,6.23320734]
[1744568005694,18.006949,1637.7,1637.5,6.10669]
[1744568005695,8.43,1637.7,1637.5,6.10669]
[1744568006205,8.43,1637.7,1637.6,0.12609734]
[1744568007624,8.43,1637.7,1637.4,6.1072]
[1744568007821,8.43,1637.7,1637.5,0.11833604]
[1744568008196,14.53612,1637.7,1637.5,0.11833604]
[1744568009003,7.38522,1637.6,1637.2,9.634117]
[1744568009203,7.38522,1637.6,1637.3,0.11833604]
[1744568009404,1.2786,1637.6,1637.3,0.11833604]
[1744568009931,1.2786,1637.6,1637.3,6.22565604]
[1744568010132,10.494207,1637.7,1637.4,6.1069]
[1744568010325,8.43,1637.7,1637.5,6.10685]
[1744568010637,11.43,1637.7,1637.6,0.11844532]
[1744568010834,8.43,1637.7,1637.6,6.22493532]
[1744568012735,52.385,1638.1,1637.8,1.2679]
[1744568013035,52.385,1638.1,1637.9,6.1052]
[1744568013337,58.5299596,1638.1,1638.0,0.11680621]
[1744568013509,64.6345896,1638.1,1638.0,0.11680621]
[1744568013710,70.7394096,1638.1,1637.7,6.10598]
[1744568014107,70.7394096,1638.1,1637.8,0.11669695]
[1744568014337,58.5299596,1638.1,1637.8,6.22219695]
[1744568014540,64.6347196,1638.1,1637.8,6.22219695]
[1744568015043,6.105,1638.0,1637.8,0.11669695]
[1744568015338,12.2499596,1638.0,1637.7,6.10606]
[1744568015534,6.1449596,1638.0,1637.7,12.21202]
[1744568015716,6.1449596,1638.0,1637.8,0.11669695]
[1744568016542,6.1449596,1638.0,1637.8,6.22235695]
[1744568017317,6.1449596,1638.0,1637.8,0.11669695]
[1744568017929,6.1449596,1638.0,1637.8,6.22243695]
[1744568018241,6.1449596,1638.0,1637.9,0.11669695]
[1744568018428,14.53331,1638.2,1637.9,0.11669695]
[1744568018738,6.10466,1638.1,1637.9,0.11669695]
[1744568019105,6.10466,1638.1,1637.8,6.10574]
[1744568019310,6.10466,1638.1,1638.0,0.11451162]
[1744568019542,6.10466,1638.1,1637.8,6.10564]
[1744568019725,8.168457,1638.1,1638.0,0.11451162]
[1744568019929,8.168457,1638.1,1637.8,6.10564]
[1744568020340,8.168457,1638.1,1637.9,0.11451162]
[1744568020547,2.063797,1638.1,1637.9,0.11451162]
[1744568020733,8.168427,1638.1,1637.9,0.11451162]
[1744568021110,2.063797,1638.1,1637.9,0.11451162]
[1744568021311,8.429,1638.2,1637.9,6.21953162]
[1744568021511,8.429,1638.2,1638.0,6.10495]
[1744568021715,8.429,1638.2,1637.9,6.21976162]
[1744568021940,8.429,1638.2,1638.0,6.10493]
[1744568022138,8.429,1638.2,1638.0,6.21944162]
[1744568023119,8.429,1638.2,1638.0,12.32428162]
[1744568023326,8.429,1638.2,1638.0,6.21935162]
[1744568024446,15.986735,1638.2,1638.0,0.11451162]
[1744568024637,4.2493,1638.1,1637.6,10.819607]
[1744568024837,6.10518,1638.0,1637.7,6.22062162]
[1744568025517,6.10552,1637.9,1637.7,0.11451162]
[1744568025716,0.610552,1637.8,1637.7,0.11451162]
[1744568025912,7.35467,1637.9,1637.3,1.1871]
[1744568026112,6.10719,1637.5,1637.1,16.929747]
[1744568026317,6.10738,1637.4,1637.1,4.713257]
[1744568027042,7.35617,1637.5,1637.1,7.29528]
[1744568027248,6.10653,1637.6,1637.2,12.2156]
[1744568027445,7.752732,1637.6,1637.2,12.2156]
[1744568027612,13.859482,1637.6,1637.2,6.1078]
[1744568027813,6.10748,1637.4,1637.0,6.10856]
[1744568028251,6.10805,1637.2,1636.9,10.822297]
[1744568028420,8.428,1637.4,1636.9,10.822197]
[1744568028752,13.05843,1637.3,1636.9,10.822197]
[1744568029923,6.95059,1637.3,1637.0,6.10872]
[1744568030141,14.53527,1637.4,1637.0,12.21731]
[1744568030321,14.53527,1637.4,1636.9,10.822337]
[1744568030322,6.10788,1637.3,1636.9,10.822337]
[1744568030523,8.428,1637.4,1636.9,4.713257]
[1744568030723,6.10823,1637.2,1636.9,4.713257]
[1744568031123,6.10838,1637.1,1636.9,4.713257]
[1744568031554,14.53529,1637.4,1636.9,5.7955237]
[1744568031856,14.53529,1637.4,1637.0,12.21715]
[1744568032752,14.53529,1637.4,1637.1,6.10826]
[1744568033049,8.428,1637.4,1637.3,6.10761]
[1744568034421,14.51282,1637.8,1637.4,6.10687]
[1744568034626,8.407,1637.8,1637.5,6.10666]
[1744568034925,8.407,1637.8,1637.2,4.754157]
[1744568034926,10.891104,1637.8,1637.2,4.754157]
[1744568035159,8.407,1637.8,1637.6,6.10631]
[1744568035459,8.407,1637.8,1637.5,7.33479]
[1744568035756,8.407,1637.8,1637.2,9.634127]
[1744568035757,6.10628,1637.7,1637.3,7.33547]
[1744568035957,12.21259,1637.7,1637.3,13.44294]
[1744568036130,6.10654,1637.6,1637.3,7.33547]
[1744568036324,6.10693,1637.5,1637.3,1.228]
[1744568036536,7.32892,1637.7,1637.2,3.526157]
[1744568036735,7.32892,1637.7,1637.0,13.44534]
[1744568036736,12.2148,1637.4,1637.0,13.44534]
[1744568036954,6.1065,1637.6,1637.0,1.228]
[1744568037154,7.33058,1637.3,1636.9,9.635187]
[1744568037361,6.10873,1637.0,1636.9,3.526157]
[1744568037556,3.0,1636.7,1636.3,1.228]
[1744568037856,3.0,1636.5,1636.3,1.228]
[1744568038638,9.11073,1636.5,1636.2,8.42309282]
[1744568039325,6.11111,1636.4,1636.2,4.89693582]
[1744568039560,6.11134,1636.3,1636.2,4.89693582]
[1744568039759,6.11111,1636.4,1636.2,4.89693582]
[1744568040076,9.11063,1636.5,1636.2,4.89693582]
[1744568040257,3.0,1636.5,1636.2,4.89693582]
[1744568040558,3.0,1636.5,1636.1,0.02]
[1744568040559,6.11126,1636.4,1636.1,0.02]
[1744568040723,12.22248,1636.4,1636.1,0.02]
[1744568040929,6.11122,1636.4,1636.1,0.02]
[1744568041330,15.73972,1636.7,1636.3,6.11112]
[1744568041531,6.11025,1636.6,1636.3,10.865277]
[1744568041861,14.51692,1636.7,1636.4,0.13988304]
[1744568042027,6.11047,1636.6,1636.4,0.13988304]
[1744568042226,12.22102,1636.6,1636.4,0.13988304]
[1744568042432,6.11047,1636.6,1636.4,0.13988304]
[1744568042639,6.1106,1636.5,1636.4,0.13988304]
[1744568042840,6.11047,1636.6,1636.4,0.13988304]
[1744568043054,8.407,1636.7,1636.4,6.477224]
[1744568043232,8.407,1636.7,1636.6,6.11022]
[1744568043637,8.407,1636.7,1636.6,6.24889959]
[1744568043959,8.407,1636.7,1636.6,0.13867959]
[1744568044166,14.51685,1636.7,1636.6,0.13867959]
[1744568044531,14.51685,1636.7,1636.4,6.11094]
[1744568044532,8.407,1636.7,1636.5,6.11045]
[1744568044730,8.407,1636.7,1636.6,0.13867959]
[1744568045967,8.407,1636.7,1636.6,6.24889959]
[1744568046164,74.23291,1637.1,1636.7,7.33768]
[1744568046375,74.23291,1637.1,1636.7,10.863837]
[1744568046376,3.0,1637.0,1636.7,10.863837]
[1744568046546,9.10875,1637.0,1636.8,0.13594505]
[1744568046742,15.21778,1637.0,1636.8,0.13594505]
[1744568047143,6.1091,1636.9,1636.8,0.13594505]
[1744568047343,7.630885,1636.9,1636.8,0.13594505]
[1744568047538,9.10875,1637.0,1636.8,0.13594505]
[1744568047743,6.1091,1636.9,1636.8,0.13594505]
[1744568049058,1.1851,1636.8,1636.3,3.526157]
[1744568049239,6.11061,1636.5,1636.4,0.13594505]
[1744568049440,6.11061,1636.5,1636.2,1.2931]
[1744568049646,6.11061,1636.5,1636.3,0.13507018]
[1744568050442,8.411,1636.6,1636.5,6.1106]
[1744568050658,8.411,1636.6,1636.5,6.84589033]
[1744568051047,8.411,1636.6,1636.5,0.73529033]
[1744568051247,8.411,1636.6,1636.5,0.12423033]
[1744568051945,8.411,1636.6,1636.5,7.52793033]
[1744568052946,8.411,1637.0,1636.8,6.10935]
[1744568053150,6.10926,1636.9,1636.5,17.16447733]
[1744568053358,1.1851,1636.8,1636.4,6.11084]
[1744568053567,6.10924,1636.9,1636.5,6.11036]
[1744568053750,15.7428,1637.0,1636.6,6.11007]
[1744568053971,6.10959,1636.8,1636.4,12.22174]
[1744568054165,12.21931,1636.8,1636.4,6.11085]
[1744568054488,9.10955,1636.8,1636.5,6.11056]
[1744568054851,15.21923,1636.8,1636.5,6.11056]
[1744568055053,9.10955,1636.8,1636.5,6.11056]
[1744568055254,3.0,1636.9,1636.6,6.10995]
[1744568055671,3.0,1636.9,1636.7,6.10973]
[1744568055884,3.0,1636.9,1636.5,7.332616]
[1744568056080,6.10963,1636.8,1636.5,6.11048]
[1744568056286,9.10914,1636.9,1636.6,6.11002]
[1744568056481,9.10914,1636.9,1636.6,12.22012]
[1744568056686,3.0,1636.9,1636.6,6.11002]
[1744568056886,9.10946,1636.9,1636.5,6.1106]
[1744568057087,6.10962,1636.8,1636.5,6.1106]
[1744568057286,12.2193,1636.8,1636.4,12.22178]
[1744568057987,6.10962,1636.8,1636.5,6.11038]
[1744568058389,11.594338,1636.9,1636.5,6.11038]
[1744568058560,5.485168,1636.9,1636.6,0.12149786]
[1744568058759,12.21937,1636.8,1636.4,12.22184]
[1744568058959,12.21937,1636.8,1636.7,0.12149786]
[1744568059160,12.21937,1636.8,1636.4,12.22184]
[1744568059361,6.10962,1636.8,1636.7,0.12149786]
[1744568059662,6.10962,1636.8,1636.5,12.22094]
[1744568059868,6.10962,1636.8,1636.6,0.12149786]
[1744568060060,11.594348,1636.9,1636.6,0.12149786]
[1744568060261,11.594348,1636.9,1636.6,6.23167786]
[1744568060573,11.594348,1636.9,1636.7,6.10967]
[1744568060574,3.0,1636.9,1636.7,6.10967]
[1744568060778,15.7428,1637.0,1636.7,6.10967]
[1744568060978,15.7428,1637.0,1636.7,12.21935]
[1744568060979,8.411,1637.0,1636.7,12.21935]
[1744568061181,8.411,1637.0,1636.8,0.12149786]
[1744568061567,8.411,1637.0,1636.8,6.23095786]
[1744568064990,10.2962,1636.9,1636.8,0.12149786]
[1744568065286,6.11006,1636.7,1636.3,12.22228]
[1744568065659,6.10956,1636.8,1636.1,0.02]
[1744568065660,6.11126,1636.4,1636.1,0.02]
[1744568065858,20.61043,1636.4,1636.1,0.02]
[1744568066076,6.11146,1636.3,1636.1,0.02]
[1744568066483,14.49917,1636.4,1636.1,0.02]
[1744568067007,14.49917,1636.4,1636.1,6.13205]
[1744568067461,14.49917,1636.4,1636.1,0.02]
[1744568067661,6.11153,1636.3,1636.1,0.02]
[1744568068390,14.49917,1636.4,1636.1,0.02]
[1744568068592,20.61044,1636.4,1636.1,0.02]
[1744568070004,22.790194,1636.4,1636.1,0.02]
[1744568070214,6.11138,1636.3,1636.1,0.02]
[1744568073685,6.11172,1636.2,1636.1,0.02]
[1744568074119,3.0,1636.3,1636.1,6.1318]
[1744568074481,9.11136,1636.3,1636.1,0.02]
[1744568074670,6.11172,1636.2,1636.1,0.02]
[1744568075471,10.75332239,1636.2,1636.1,0.02]